Cogmind - Beta 16.1 @@@ ROGUE MODE // 2026.05.03 @ 20:45:12 Player: KURIIRI Result: Self-destructed Performance ------------- Evolutions (0) 0 Regions Visited (3) 600 Robots Destroyed (43) 215 Value Destroyed (867) 867 Prototype IDs (14) 280 Alien Tech Used (0) 0 Bonus (-74) -74 TOTAL SCORE: 1888 Bonus ------- High Alert Combat Kills 16 Follower Combat Kills 75 Friendly Fire -165 Cogmind --------- Core Integrity 170/250 Matter 300/300 Energy 250/250 System Corruption 0% Temperature Cool (0) Movement Treading (160) Location -7/Recycling Parts ------- > --- POWER (1) -------- Ion Engine > --- PROPULSION (2) --- Spiked Treads Spiked Treads > --- UTILITY (2) ------ Large Storage Unit Hacking Suite > --- WEAPON (2) ------- Subdweller Beam Cannon Multitool > --- INVENTORY (15) --- SUBCON Basin (Full) Peak State ------------ > --- POWER ------------ Ion Engine > --- PROPULSION ------- Spiked Treads Spiked Treads > --- UTILITY ---------- Large Storage Unit Hacking Suite > --- WEAPON ----------- Subdweller Beam Cannon Multitool > --- INVENTORY -------- SUBCON Basin [Rating: 31] Favorites ----------- Power Ion Engine Engine Ion Engine Propulsion Spiked Treads Treads Spiked Treads Leg Aluminum Leg Wheel Compact Wheel Utility Large Storage Unit Device V3-11A's Pendant Storage Large Storage Unit Hackware Hacking Suite Weapon Subdweller Beam Cannon Energy Gun Medium Laser Energy Cannon Subdweller Beam Cannon Ballistic Gun Subdweller Machine Gun Launcher Grenade Launcher Special Weapon Multitool Slashing Weapon Ripper Build | -11 -10 -10 -7 ------- Run | Yrd Mat Sub Rec Slots Evolved . | . . . . Power . | . . . . Propulsion . | . . . . Utility . | . . . . Weapon . | . . . . Parts Attached 28 | 4 13 11 . Power 1 | . 1 . . Engine 1 | . 1 . . Core . | . . . . Reactor . | . . . . Propulsion 6 | 2 2 2 . Treads 5 | 2 1 2 . Leg . | . . . . Wheel 1 | . 1 . . Hover . | . . . . Flight . | . . . . Utility 4 | 1 1 2 . Device 2 | 1 . 1 . Storage 1 | . 1 . . Processor . | . . . . Hackware 1 | . . 1 . Protection . | . . . . Artifact . | . . . . Weapon 17 | 1 9 7 . Energy Gun 2 | 1 1 . . Energy Cannon 5 | . 3 2 . Ballistic Gun 6 | . 3 3 . Ballistic Cannon . | . . . . Launcher 2 | . 2 . . Special Weapon 1 | . . 1 . Impact Weapon . | . . . . Slashing Weapon 1 | . . 1 . Piercing Weapon . | . . . . Special Melee Weapon . | . . . . Unidentified Prototypes 1 | . . 1 . Parts Lost 4 | . 1 3 . Power . | . . . . Propulsion 2 | . . 2 . Utility . | . . . . Weapon 2 | . 1 1 . Highest Loss Streak 1 | . 1 1 . To Critical Strikes . | . . . . Average Backups 12 | 6 8 13 . Power 1 | 1 1 . . Propulsion 2 | 4 2 2 . Utility 2 | . 1 3 . Weapon 4 | 1 2 5 . Tool/Special . | . . . . Unused Backups 17 | . 7 10 . Power 4 | . 3 1 . Propulsion 1 | . 1 . . Utility 3 | . 1 2 . Weapon 8 | . 2 6 . Tool/Special 1 | . . 1 . Average Slot Usage (%) 99 | . 100 99 100 Engine 14 | . 14 14 14 Treads 26 | . 24 27 28 Wheel 1 | . 4 . . Device 13 | . 14 13 . Storage 14 | . 14 14 14 Energy Gun 1 | . 6 . . Energy Cannon 14 | . 9 15 14 Ballistic Gun 10 | . 7 10 . Special Weapon 1 | . . 1 14 Peak Build Rating 31 | 9 12 31 31 Average Rating 14 | 6 9 15 31 On Entrance 14 | 6 9 12 31 Avg Prop Armor Cover (%) 12 | . 12 12 . Naked Turns . | . . . . Heaviest Build 42 | 15 32 42 35 Greatest Support 40 | 40 40 40 40 Greatest Overweight (x) 1 | . 1 1 . Average Overweight (x) . | . . . . Largest Inventory Capacity 15 | 8 15 15 15 Average Capacity 13 | 8 10 15 15 Most Carried 15 | 6 12 15 15 Average Carried 13 | 5 8 14 15 Final Capacity 15 | 8 15 15 15 Final Carried 15 | 4 12 15 15 Class Distribution -------------------- 100% | Mutant Dominant Class ---------------- Mutant | -10/Materials Mutant | -10/Subcaves Mutant | -7/Recycling Resources | -11 -10 -10 -7 ----------- Run | Yrd Mat Sub Rec Matter Collected 1118 | 218 358 542 . Remotely . | . . . . Salvage Created 1100 | 117 558 425 . Parts 80 | 4 46 30 . Haulers Intercepted 2 | . 2 . . Recyclers Shooed 1 | . 1 . . Parts Field Recycled . | . . . . Retrieved Matter . | . . . . Parts Self-Destructed 20 | . . 20 . Prevented . | . . . . Parts Restored . | . . . . Kills | -11 -10 -10 -7 ------- Run | Yrd Mat Sub Rec Combat Hostiles Destroyed 25 | . 15 10 . Guns 13 | . 5 8 . Cannons 1 | . . 1 . AOE 11 | . 10 1 . Classes Destroyed 12 | 2 7 3 . Worker 3 | . 3 . . Builder 4 | . 4 . . Tunneler 2 | 2 . . . Hauler 2 | . 2 . . Recycler 1 | 1 . . . Operator 2 | . 2 . . Watcher 3 | . 3 . . Swarmer 8 | . 8 . . Grunt 8 | . 7 1 . Sentry 1 | . . 1 . Artisan 1 | . . 1 . Subdweller 9 | . . 9 . Best Kill Streak 6 | 2 6 2 . Combat Bots Only 6 | . 6 2 . Max Kills in Single Turn 3 | 1 3 1 . Gunslinging . | . . . . Exploded 2 | . 2 1 . Melee . | . . . . Uniques/NPCs Destroyed . | . . . . Combat | -11 -10 -10 -7 -------- Run | Yrd Mat Sub Rec Hostile Shots Fired 89 | . 55 34 . Missed 25 | . 15 10 . Hits 64 | . 40 24 . Projectile 64 | . 40 24 . Damage Taken 987 | . 419 568 . Core 80 | . 20 60 . Absorbed by Shields . | . . . . Core Remaining (%) 100 | 100 . . . Volleys Fired 129 | 10 56 63 . Largest 2 | 2 2 2 . Hottest 160 | 90 120 160 . Shots Fired 224 | 20 99 105 . Gun 164 | 20 70 74 . Cannon 46 | . 16 30 . Launcher 14 | . 13 1 . Special . | . . . . Kinetic 105 | 8 23 74 . Thermal 83 | 2 51 30 . Explosive 14 | . 13 1 . Electromagnetic 22 | 10 12 . . Robot Hit Streak 14 | 9 14 13 . Robot Miss Streak 5 | 1 5 2 . Penetration Max . | . . . . Secondary Targets 2 | . 2 . . Max Gunslinging Chain 1 | . 1 . . Shots Hit Robots 110 | 16 54 40 . Core Hits 63 | 4 38 21 . Critical Kills . | . . . . Critical Parts Destroyed . | . . . . Critical Strikes 2 | 1 1 . . Corrupt 2 | 1 1 . . Melee Attacks 2 | . . 2 . Impact . | . . . . Slashing 2 | . . 2 . Piercing . | . . . . Sneak Attacks . | . . . . Combat Hostiles . | . . . . Follow-up Attacks . | . . . . Damage Inflicted 2609 | 174 1549 886 . Guns 1273 | 174 478 621 . Cannons 368 | . 176 192 . Explosions 962 | . 889 73 . Melee . | . . . . Ramming 6 | . 6 . . Kinetic 776 | 44 111 621 . Thermal 675 | 12 471 192 . Explosive 904 | . 831 73 . Electromagnetic 248 | 118 130 . . Impact . | . . . . Slashing . | . . . . Piercing . | . . . . Highest Corruption . | . . . . Average Corruption . | . . . . Corruption Purged . | . . . . Corruption Blocked . | . . . . Overload Shots . | . . . . Overflow Damage 10 | . 10 . . Projectiles . | . . . . Explosions 10 | . 10 . . Melee . | . . . . Knockbacks . | . . . . Impact . | . . . . Kinetic . | . . . . Secondary . | . . . . Self-Inflicted Damage 96 | . 65 31 . Shots 5 | . 4 1 . Rammed . | . . . . Targets Rammed 1 | . 1 . . Kicked . | . . . . Crushed 1 | . 1 . . Highest Temperature 300 | 60 300 156 . Average Temperature 80 | 32 93 51 . Received Heat Transfer 192 | . 90 102 . Siege Activations . | . . . . Martial Activations . | . . . . Shielding Activations . | . . . . Robots Disrupted . | . . . . Combat Hostiles . | . . . . Robots Corrupted . | . . . . Combat Hostiles . | . . . . Parts Fried 2 | 1 1 . . Impact Corruptions . | . . . . Robots Melted . | . . . . Combat Hostiles . | . . . . Parts Melted . | . . . . Heat Transferred 1469 | 37 1173 259 . Parts Sabotaged . | . . . . Parts Stolen . | . . . . Parts Stripped . | . . . . Power Chain Reactions 1 | . 1 . . Alert | -11 -10 -10 -7 ------- Run | Yrd Mat Sub Rec Maximum Alert Level 2 | . 2 . . Low Security (%) 25 | 100 20 . 100 Level 1 59 | . 63 . . Level 2 14 | . 16 . . Level 3 . | . . . . Level 4 . | . . . . Level 5 . | . . . . High Security . | . . . . Max Security . | . . . . Peak Influence 439 | 5 439 . . Initial . | . . . . Average 279 | 1 299 . . Influence Increases 893 | 15 756 122 . Destroy 0b10 Robot/C 400 | . 300 100 . Destroy 0b10 Robot/NC 85 | 15 70 . . Destroy Leader 80 | . 70 10 . Allied During Kill 12 | . . 12 . Successful Hack 22 | . 22 . . Select Force Hacks 30 | . 30 . . Disable Machine 15 | . 15 . . Destroy Structure 84 | . 84 . . Lose Combat Pursuer 165 | . 165 . . Influence Decreases 893 | 15 418 460 . Entered New Map 163 | . . 163 . Time Decay 700 | 15 408 277 . Lost Part 30 | . 10 20 . Squads Dispatched 2 | . 2 . . Investigation 1 | . 1 . . Extermination . | . . . . Reinforcement 1 | . 1 . . Assault . | . . . . Garrison . | . . . . Intercept . | . . . . Searches Triggered . | . . . . Construction Impeded . | . . . . Haulers Reinforced . | . . . . Active Scanning Responses . | . . . . Cargo Convoy Interrupts . | . . . . Stealth | -11 -10 -10 -7 --------- Run | Yrd Mat Sub Rec Distress Signals . | . . . . Communications Jammed . | . . . . Distress Signals . | . . . . Times Spotted 55 | . 30 25 . Peak Tracking Total 6 | . 3 6 . Tactical Retreats 11 | . 11 . . Traps | -11 -10 -10 -7 ------- Run | Yrd Mat Sub Rec Traps Triggered . | . . . . Indirectly . | . . . . Trap Hack Attempts . | . . . . Triggered . | . . . . Disarmed . | . . . . Reprogrammed . | . . . . Reused . | . . . . Traps Extracted . | . . . . Installed . | . . . . Triggered . | . . . . Machines | -11 -10 -10 -7 ---------- Run | Yrd Mat Sub Rec Machines Disabled 1 | . 1 . . Max in Single Turn 1 | . 1 . . Machines Repaired . | . . . . Machines Dismantled . | . . . . Machines Sabotaged . | . . . . Overloaded Fab Kills . | . . . . Hacking | -11 -10 -10 -7 --------- Run | Yrd Mat Sub Rec Machines Accessed 10 | . 6 4 . Terminals 5 | . 5 . . Fabricators . | . . . . Repair Stations . | . . . . Recycling Units 1 | . 1 . . Scanalyzers . | . . . . Garrison Access . | . . . . Total Hacks 20 | . 12 8 . Successful 14 | . 6 8 . Failed 6 | . 6 . . Catastrophic 1 | . 1 . . Database Lockouts . | . . . . Manual 12 | . 12 . . Terminals 11 | . 11 . . Fabricators . | . . . . Repair Stations . | . . . . Recycling Units 1 | . 1 . . Scanalyzers . | . . . . Garrison Access . | . . . . Terminal Hacks 12 | . 4 8 . Record 5 | . . 5 . Robot Analysis 4 | . 4 . . Open Door 1 | . . 1 . Proto ID Catalog 1 | . . 1 . Release Object 1 | . . 1 . Fabricator Hacks . | . . . . Repair Station Hacks . | . . . . Recycling Unit Hacks . | . . . . Scanalyzer . | . . . . Garrison Access Hacks . | . . . . Unauthorized Hacks 2 | . 2 . . Terminals 1 | . 1 . . Operators 1 | . 1 . . Fabricators . | . . . . Repair Stations . | . . . . Recycling Units 1 | . 1 . . Tunnel 1 | . 1 . . Scanalyzers . | . . . . Garrison Access . | . . . . Data Cores Recovered 1 | . 1 . . Used 1 | . 1 . . Hacking Detections 5 | . 5 . . Full Trace Events 1 | . 1 . . Feedback Events . | . . . . Feedback Blocked . | . . . . Robot Schematics Acquired . | . . . . Robots Built . | . . . . Authchips . | . . . . Time . | . . . . Total Robot Build Rating . | . . . . Part Schematics Acquired . | . . . . Parts Built . | . . . . Authchips . | . . . . Time . | . . . . Total Part Build Rating . | . . . . Part Studies Acquired . | . . . . Parts Repaired . | . . . . Time . | . . . . Parts Recycled . | . . . . Recycled Matter . | . . . . Retrieved Matter . | . . . . Retrieved Components . | . . . . Parts Scanalyzed . | . . . . Part Schematics Acquired . | . . . . Parts Damaged . | . . . . Bothacking | -11 -10 -10 -7 ------------ Run | Yrd Mat Sub Rec Used RIF Installer . | . . . . Robots Hacked . | . . . . Non-combat . | . . . . Combat . | . . . . Robot Hacks Applied . | . . . . Relay Couplers Released . | . . . . Fabnet Peak Effective % . | . . . . Robots Rewired . | . . . . Allies Hacked . | . . . . Hacks Repelled . | . . . . Allies | -11 -10 -10 -7 -------- Run | Yrd Mat Sub Rec Total Allies 13 | . . 13 . Largest Group 8 | . . 8 7 Highest-Rated Group 153 | . . 153 134 Highest-Rated Ally 20 | . . 20 20 Total Orders . | . . . . Ally Attacks 20 | . . 20 . Total Damage 435 | . . 435 . Kills 5 | . . 5 . Allies Corrupted . | . . . . Allies Melted . | . . . . Intel | -11 -10 -10 -7 ------- Run | Yrd Mat Sub Rec Active Infowar (turns) 1720 | 5 1046 669 . Terrain 1720 | 5 1046 669 . Robot Analysis Total 4 | . 4 . . Derelict Logs Recovered 2 | . . 2 . Drone Launches . | . . . . Drone Recoveries . | . . . . Exploration | -11 -10 -10 -7 ------------- Run | Yrd Mat Sub Rec Turns Passed 5169 | 68 1046 4046 9 Spaces Moved 2469 | 29 571 1864 5 Core . | . . . . Treads 2165 | 1 330 1829 5 Legs 28 | 28 . . . Wheels 276 | . 241 35 . Hover . | . . . . Flight . | . . . . Fastest Speed 115 | 120 115 115 160 Average Speed 180 | 121 141 193 160 Slowest Speed 260 | 160 160 260 160 Overloaded Moves . | . . . . Propulsion Burnouts . | . . . . Robots Hopped . | . . . . Potential Cave-ins . | . . . . Cave-ins Triggered . | . . . . Exploration Rate (%) 44 | 3 74 94 6 Regions Visited 3 Branch Regions 2 Pre-discovered Areas 3 | . 1 2 . Known Exits Taken . | . . . . Unknown Exits Taken 3 | 1 1 1 . Scrap Searched 20 | . . 20 . Spaces Dug 15 | . 9 6 . Terrain Destroyed 96 | . 85 11 . Melee 2 | . . 2 . Projectile 6 | . . 6 . AOE 88 | . 85 3 . Terrain Rammed . | . . . . Walls Destroyed . | . . . . Machines Disabled . | . . . . Actions | -11 -10 -10 -7 --------- Run | Yrd Mat Sub Rec Total 2963 | 44 717 2196 6 Wait 260 | . 47 212 1 Move 2466 | 28 570 1863 5 Hop . | . . . . Pick Up 26 | . 14 12 . Fast Attach 9 | 1 4 4 . Attach 7 | 2 1 4 . Detach 3 | . 2 1 . Swap 21 | 1 10 10 . Drop 39 | 2 12 25 . Fire 129 | 10 56 63 . Melee 2 | . . 2 . Ram . | . . . . Kick . | . . . . Crush 1 | . 1 . . Escape Stasis . | . . . . Rewire . | . . . . Trap . | . . . . Miscellaneous . | . . . . Route ------- -11/Scrapyard -10/Materials (discovered 5 exits: [*Mat x2] / [*Min x2] / *Sub) -10/Subcaves (discovered 4 exits: *Mat x2 / [*Rec] / [*Scr]) -7/Recycling History --------- Turn | Location | Event 1 | -11/Scrapyard | Discovered new exit (range 2) 69 | -11/Scrapyard | Entered Materials 316 | -10/Materials | Build established: Mutant 378 | -10/Materials | Discovered new exit (range 9) 527 | -10/Materials | Discovered new exit (range 16) 563 | -10/Materials | Discovered new exit (range 11) 655 | -10/Materials | Discovered new exit (range 11) 846 | -10/Materials | Discovered new exit (range 16) 1115 | -10/Materials | Entered Subcaves 1116 | -10/Subcaves | Approached by a straggling Scientist 1221 | -10/Subcaves | Disturbed a concealed Subdweller 1775 | -10/Subcaves | Visited triangular shrine 1784 | -10/Subcaves | Found Prototype Device 1784 | -10/Subcaves | Identified V3-11A's Pendant 1789 | -10/Subcaves | Befriended Subdweller 1842 | -10/Subcaves | Scientist uncovered a shortcut to Scraptown 1844 | -10/Subcaves | Befriended Subdweller 1956 | -10/Subcaves | A swath of the cavern ceiling suddenly collapsed 2109 | -10/Subcaves | Befriended Subdweller 2200 | -10/Subcaves | Lost 3 allies 2215 | -10/Subcaves | Identified exit to Materials 2223 | -10/Subcaves | Approached by friendly Subdweller 2359 | -10/Subcaves | Befriended Subdweller 2359 | -10/Subcaves | Befriended Subdweller 2362 | -10/Subcaves | Shifting Twisted Machinery released Sub. Machine Gun 2366 | -10/Subcaves | Shifting Twisted Machinery released Sub. Laser 2368 | -10/Subcaves | Shifting Twisted Machinery released Sub. Beam Cannon 2431 | -10/Subcaves | Shifting Twisted Machinery released Shrapnel Trap 2471 | -10/Subcaves | Learned location of 1 exit from Materials 2569 | -10/Subcaves | Befriended Subdweller 2612 | -10/Subcaves | Disturbed a concealed Subdweller 2614 | -10/Subcaves | Befriended Subdweller 2964 | -10/Subcaves | Disturbed a concealed Subdweller 2964 | -10/Subcaves | Befriended Subdweller 3015 | -10/Subcaves | Learned location of Zion (-7) 3015 | -10/Subcaves | Met a Zionite searching for "candidates" 3355 | -10/Subcaves | A Subdweller sparked back to life 3355 | -10/Subcaves | A Subdweller sparked back to life 3355 | -10/Subcaves | A Subdweller sparked back to life 3359 | -10/Subcaves | Befriended Subdweller 3359 | -10/Subcaves | Befriended Subdweller 3359 | -10/Subcaves | Befriended Subdweller 3410 | -10/Subcaves | A swath of the cavern ceiling suddenly collapsed 3509 | -10/Subcaves | Befriended Subdweller 3891 | -10/Subcaves | Discovered exit to Materials (range 14) 4188 | -10/Subcaves | Visited 4L-MR0's lab 4375 | -10/Subcaves | Visited Clippyterm 4382 | -10/Subcaves | Learned location of Extension (-5) 4382 | -10/Subcaves | Learned Factory garrison access intel 4444 | -10/Subcaves | Shifting Twisted Machinery released Sub. Monowheel 4931 | -10/Subcaves | Found SUBCON Basin 5157 | -10/Subcaves | Discovered new exit (range 2) 5161 | -10/Subcaves | Entered Recycling 5161 | -7/Recycling | Accompanied by 7 allies 5170 | -7/Recycling | Self-destructed Last Messages --------------- 04925_ Dropped Com. Wheel. 04926_ Dropped Imp. Terrain Scanner. 04926_ Dropped Scrap Shield. 04927_ Dropped Sub. Beam Cannon. 04928_ Dropped Sub. Machine Gun. 04928_ Dropped Sub. Beam Cannon. 04929_ Dropped Sub. Shrapnel Launcher. 04929_ Dropped Datajack. 04930_ Dropped Med. Matter Pod. 04930_ Med. Matter Pod crushed and broken. 04930_ Dropped Ripper. 04930_ Ripper crushed and broken. 04931_ Dropped Com. Wheel. 04931_ Com. Wheel crushed and broken. 04931_ Acquired SUBCON Basin. 05002_ Subatomizers dissect the Sub. Optics. 05006_ Acquired 10 matter. 05157_ EXIT=FOUND LOCATION=UNKNOWN GOAL=ESCAPE Map ----- +----------------------------------------------------+ | ???????????????????????????????????????????? | | ???????????????????????????????????????????? | | ???????????????????????????????????????????? | | ???????????????????????????????????????????? | | ???????????????????????????????????????????? | | ???????????????????????????????????????????? | | ???????????????????????????????????????????? | | ???????????????????????????????????????????? | | ???????????????????????????????????????????? | | ???????????????????????????????????????????? | | ???????????????????????????????????????????? | | ?????????????????????? ???????????????????? | | ?????????????????????" ???????????????????? | | ?????????????????????" ???????????????????? | | ????????????????????? ???????????????????? | | ????????????????????? #??????????????????? | | ???????????????"" ???" #??????????????????? | | ???????????????"" ?"" #######????????????? | | ???????????????"" """ #! #????????????? | | ??????????? ???"" """ # ! #????????????? | | ??????????? """ """ # #????????????? | | ??????????? # #????????????? | | ?????????????? + ! #????????????? | | ????????????????? # !#????????????? | | ????????????????????# # ] #????????????? | | ????????????????????# RRR@ #????????????? | | ????????????????????#R R#!!!=[#????????????? | | ????????????????????#R # % !#????????????? | | ????????????????????# # #????????????? | | ????????????????????# # !! %#????????????? | | ????????????????????# # #????????????? | | ????????????????????##### #????????????? | | ????????????????????????# #????????????? | | ????????????????????????#######????????????? | | ???????????????????????????????????????????? | | ???????????????????????????????????????????? | | ???????????????????????????????????????????? | | ???????????????????????????????????????????? | | ???????????????????????????????????????????? | | ???????????????????????????????????????????? | | ???????????????????????????????????????????? | | ???????????????????????????????????????????? | | | | | | | | | | | | | | | | | +----------------------------------------------------+ Best States ------------- Heat Dissipation 25 Energy Generation 10 Energy Capacity 250 Matter Stores 300 Matter Capacity 300 Sight Range 16 Terrain Scan Range 16 Terrain Scan Density 10 Evasion (%) 55 Recoil Reduction 2 Offensive Hacking 10 Item Schematics ----------------- None Robot Schematics ------------------ None Fabricated ------------ Nothing Repaired ---------- Nothing Studied --------- None Alien Tech Used ----------------- None Achievements -------------- None Challenges ------------ None Game ------ Seed ReinforcedColdAutopenetrator Manual? 0 Play Time 00:19:22 Cumulative 442.3 hours Start 2026.05.03 @ 19:58:41 End 2026.05.03 @ 20:45:12 Sessions 1 Manual Loads 0 Difficulty Rogue Special Mode None Game No. 381 Rogue 345 Adventurer 36 Explorer 0 Win Type - Total 5 Types 2/0/0/1/0/0/0/2/0/0 Lore% 81 Gallery% 69 Achievement% 60 Wizard Run 0 Options --------- Layout 1 ASCII 0 Keyboard 0 Movement Mouse Keybinds 0 Fullscreen 1 Font 48/Smallcaps Map View 50x35 Zoom Use 0% Tactical HUD 1 Map Filters NONE Filters NONE Steam 1 RUN: 849e417d-d55b-4ca6-8a94-5bd2f8f3d7d4